bitfinex/quotes_SOLUSD_20250212
["timestamp","ask_amount","ask_price","bid_price","bid_amount"]
[1739395079025,9.96281426,196.47,196.44,0.063]
[1739395079243,9.96281426,196.46,196.44,0.063]
[1739395080125,10.47181426,196.46,196.44,0.063]
[1739395080325,9.96281426,196.45,196.44,0.063]
[1739395083537,2.0345,196.46,196.44,0.063]
[1739395084053,11.99731426,196.46,196.44,0.063]
[1739395086557,9.96281426,196.45,196.44,0.063]
[1739395088861,10.47181426,196.45,196.44,0.063]
[1739395092961,11.74431426,196.45,196.41,0.063]
[1739395093159,19.92562852,196.42,196.41,0.063]
[1739395093341,9.96281426,196.34,196.33,7.87612063]
[1739395094450,10.47211426,196.34,196.3,7.87612063]
[1739395094651,9.96281426,196.31,196.3,7.87612063]
[1739395095773,15.60037702,196.33,196.3,7.87612063]
[1739395096137,15.60037702,196.31,196.3,7.87612063]
[1739395096560,16.10967702,196.31,196.3,7.87612063]
[1739395097648,16.10967702,196.31,196.25,1.5]
[1739395097965,15.60037702,196.3,196.25,1.5]
[1739395098152,15.60037702,196.27,196.24,0.063]
[1739395098348,15.60037702,196.26,196.24,0.063]
[1739395098667,16.10987702,196.27,196.24,1.063]
[1739395099263,15.60037702,196.25,196.24,0.063]
[1739395100366,16.10987702,196.25,196.24,0.063]
[1739395102645,15.60037702,196.26,196.24,0.063]
[1739395103870,15.60037702,196.26,196.24,1.063]
[1739395104185,15.60037702,196.25,196.24,0.063]
[1739395106049,16.10987702,196.25,196.24,0.063]
[1739395108774,20.12549,196.22,196.21,0.063]
[1739395108947,35.60037702,196.22,196.21,0.063]
[1739395109956,36.10997702,196.22,196.21,0.063]
[1739395110778,59.18985404,196.22,196.15,0.063]
[1739395110957,15.60037702,196.16,196.15,0.063]
[1739395111165,15.60037702,196.17,196.15,0.063]
[1739395111965,15.60037702,196.16,196.15,0.063]
[1739395112366,15.60037702,196.17,196.15,0.063]
[1739395113177,15.60037702,196.16,196.15,0.063]
[1739395115181,16.11007702,196.16,196.15,0.063]
[1739395115786,15.60037702,196.15,196.14,0.063]
[1739395117061,16.11017702,196.15,196.14,0.063]
[1739395117673,10.51451906,196.15,196.07,0.12598998]
[1739395117980,10.51451906,196.15,196.08,0.5]
[1739395118195,10.51451906,196.15,196.07,0.62598998]
[1739395118483,10.51451906,196.15,196.07,0.12598998]
[1739395118685,10.00471906,196.13,196.1,0.5]
[1739395118855,0.5098,196.15,196.11,0.5]
[1739395119057,0.5098,196.15,196.11,0.62598998]
[1739395119493,0.5098,196.15,196.12,0.12598998]
[1739395119875,0.5098,196.15,196.11,0.12598998]
[1739395120185,0.5098,196.15,196.09,10.63070904]
[1739395120186,10.51451906,196.15,196.09,10.63070904]
[1739395120893,10.51451906,196.15,196.1,0.12598998]
[1739395121207,10.51451906,196.15,196.1,0.5]
[1739395121488,10.51451906,196.15,196.1,0.62598998]
[1739395122068,10.00471906,196.14,196.09,0.12598998]
[1739395122271,10.00471906,196.12,196.08,0.5]
[1739395122785,10.00471906,196.12,196.07,0.12598998]
[1739395123191,0.5099,196.11,196.07,0.12598998]
[1739395123388,10.00471906,196.1,196.06,0.62598998]
[1739395123589,0.5098,196.14,196.1,0.5]
[1739395123790,10.00471906,196.19,196.13,0.62598998]
[1739395123965,0.5096,196.21,196.13,0.62598998]
[1739395124166,20.0,196.19,196.13,0.62598998]
[1739395124483,10.00471906,196.19,196.14,0.12598998]
[1739395124686,10.00471906,196.17,196.12,0.12598998]
[1739395124860,0.5096,196.21,196.11,0.12598998]
[1739395124861,10.00471906,196.15,196.11,0.12598998]
[1739395125061,10.00471906,196.15,196.11,0.62598998]
[1739395125260,10.00471906,196.16,196.11,0.12598998]
[1739395125465,10.00471906,196.15,196.1,0.62598998]
[1739395125665,10.00471906,196.13,196.09,0.12598998]
[1739395126278,10.00471906,196.13,196.09,0.62598998]
[1739395126488,10.00471906,196.15,196.1,0.62598998]
[1739395126696,10.51441906,196.16,196.12,0.12598998]
[1739395128086,10.00471906,196.17,196.12,0.12598998]
[1739395128393,10.00471906,196.17,196.12,0.62598998]
[1739395128584,10.00471906,196.16,196.11,5.5989]
[1739395128782,10.00471906,196.16,196.12,0.12598998]
[1739395129786,10.00471906,196.16,196.11,0.62598998]
[1739395130093,10.00471906,196.15,196.11,0.5]
[1739395130788,10.00471906,196.15,196.11,0.62598998]
[1739395131190,10.00471906,196.15,196.11,0.5]
[1739395132397,10.00471906,196.15,196.11,0.62598998]
[1739395132894,10.00471906,196.15,196.11,0.5]
[1739395133073,10.00471906,196.13,196.09,0.063]
[1739395133276,10.00471906,196.12,196.09,0.063]
[1739395133693,10.00471906,196.12,196.09,0.563]
[1739395133998,10.00471906,196.13,196.09,0.68898998]
[1739395134375,10.00471906,196.13,196.09,0.18898998]
[1739395134986,10.00471906,196.13,196.09,0.68898998]
[1739395135183,10.00471906,196.13,196.09,0.063]
[1739395136202,10.00471906,196.12,196.09,0.063]
[1739395137079,10.00471906,196.13,196.09,0.68898998]
[1739395137798,10.00471906,196.13,196.09,0.063]
[1739395137978,10.00471906,196.12,196.09,0.063]
[1739395138382,10.00471906,196.12,196.09,0.18898998]
[1739395139179,10.00471906,196.1,196.09,0.063]
[1739395140401,10.13020906,196.1,196.09,0.063]
[1739395140573,50.1490853,196.1,196.09,0.063]
[1739395141181,10.64010906,196.1,196.09,0.063]
[1739395141381,50.6589853,196.1,196.09,0.063]
[1739395141581,51.1589853,196.1,196.09,0.063]
[1739395142107,52.03299532,196.1,196.09,0.063]
[1739395142315,0.12549,196.06,196.04,0.063]
[1739395142483,11.37872908,196.05,196.04,0.063]
[1739395143176,11.88872908,196.05,196.04,0.063]
[1739395143382,12.13970908,196.05,196.04,0.063]
[1739395143600,0.12549,196.0,195.95,0.063]
[1739395143799,10.00471906,195.98,195.95,0.063]
[1739395144820,10.00471906,196.02,195.97,0.62598998]
[1739395145102,10.00471906,196.03,195.98,0.5]
[1739395145308,0.51,196.04,195.99,0.62598998]
[1739395145309,10.00471906,196.04,195.99,0.62598998]
[1739395145516,0.5099,196.11,195.95,20.0]
[1739395145704,0.5099,196.11,195.97,1.5558]
[1739395145883,20.0,196.1,195.97,1.5558]
[1739395146286,21.0,196.1,195.97,1.5558]
[1739395146504,10.00471906,196.06,196.0,10.00471906]
[1739395146699,10.00471906,196.06,195.99,10.00471906]
[1739395147118,10.00471906,196.05,195.98,15.10721906]
[1739395147901,10.00471906,196.05,195.99,10.00471906]
[1739395148217,10.00471906,196.06,196.0,5.102]
[1739395148413,10.00471906,196.06,195.99,10.00471906]
[1739395148599,10.51471906,196.08,196.02,10.00471906]
[1739395148928,10.00471906,196.1,196.03,10.00471906]
[1739395149094,0.5098,196.12,195.99,5.1022]
[1739395149095,10.00471906,196.07,196.01,10.00471906]
[1739395149301,10.00471906,196.06,195.99,15.10691906]
[1739395149497,10.00471906,196.05,195.99,15.10691906]
[1739395150108,10.00471906,196.09,196.02,10.00471906]
[1739395150416,1.6103,196.13,196.02,10.00471906]
[1739395150417,10.00471906,196.07,196.02,5.1014]
[1739395150724,10.00471906,196.06,196.02,5.1014]
[1739395151222,10.00471906,196.06,196.0,15.10651906]
[1739395151385,10.00471906,196.06,196.0,5.1018]
[1739395151590,10.00471906,196.05,196.0,5.1018]
[1739395151795,10.00471906,196.04,195.98,15.10701906]
[1739395152008,10.00471906,196.05,195.99,10.00471906]
[1739395152214,10.00471906,196.06,195.99,10.00471906]
[1739395152387,10.00471906,196.06,196.0,10.00471906]
[1739395153128,10.00471906,196.06,195.99,10.00471906]
[1739395153503,10.00471906,196.06,196.0,5.102]
[1739395154314,10.00471906,196.04,195.98,15.10721906]
[1739395154815,10.00471906,196.05,195.99,10.00471906]
[1739395155587,10.51471906,196.06,195.99,10.00471906]
[1739395155821,10.51471906,196.06,196.0,10.00471906]
[1739395155991,1.2747,196.12,196.02,10.00471906]
[1739395155992,10.00471906,196.09,196.02,10.00471906]
[1739395156493,10.00471906,196.07,196.01,10.00471906]
[1739395157516,10.00471906,196.07,196.0,15.10651906]
[1739395157815,10.00471906,196.07,196.01,10.00471906]
[1739395158494,10.51471906,196.08,196.01,10.00471906]
[1739395158690,0.51,196.08,196.02,10.00471906]
[1739395160118,10.51471906,196.08,196.01,10.00471906]
[1739395160324,10.51471906,196.08,196.02,10.00471906]
[1739395160622,10.03471906,196.13,196.06,10.00471906]
[1739395160801,0.03,196.13,196.08,10.00471906]
[1739395161602,0.03,196.13,196.07,10.00471906]
[1739395161906,0.03,196.13,196.07,15.10481906]
[1739395162289,10.00471906,196.1,196.06,5.1003]
[1739395163600,10.00471906,196.12,196.06,5.1003]
[1739395164419,0.03,196.1,196.06,5.1003]
[1739395164608,0.03,196.1,196.06,15.10501906]
[1739395164809,0.03,196.1,196.07,10.00471906]
[1739395166222,0.03,196.1,196.07,15.10481906]
[1739395167128,0.03,196.1,196.08,10.00471906]
[1739395168219,0.03,196.1,196.07,10.00471906]
[1739395168427,0.03,196.1,196.07,15.10481906]
[1739395168727,0.03,196.1,196.07,5.1001]
[1739395169231,0.03,196.1,196.09,10.00471906]
[1739395170428,0.03,196.1,196.09,15.10431906]
[1739395171721,0.03,196.1,196.09,15.22980906]
[1739395172123,0.03,196.1,196.09,15.10431906]
[1739395172341,0.03,196.1,196.05,22.70962578]
[1739395172342,0.03,196.1,196.07,10.00471906]
[1739395172507,0.03,196.1,196.06,15.10511906]
[1739395173127,0.03,196.1,196.05,10.00471906]
[1739395173313,0.03,196.1,196.02,12.7533]
[1739395173314,10.00471906,196.08,196.01,15.10641906]
[1739395173509,10.00471906,196.06,196.0,15.10661906]
[1739395175123,10.00471906,196.07,196.0,15.10661906]
[1739395175311,10.00471906,196.07,196.01,10.00471906]
[1739395175629,16.14975629,196.08,196.01,15.63975629]
[1739395175833,0.51,196.08,196.02,15.63975629]
[1739395176131,21.5867,196.1,196.05,15.63975629]
[1739395176440,37.22645629,196.1,196.04,15.63975629]
[1739395176617,1.5867,196.1,196.05,15.63975629]
[1739395176831,0.03,196.1,196.05,15.63975629]
[1739395177141,16.17965629,196.1,196.04,15.63975629]
[1739395177313,16.17965629,196.1,196.03,15.63975629]
[1739395177929,36.17965629,196.1,196.03,15.63975629]
[1739395181138,20.5399,196.1,196.05,15.63975629]
[1739395181313,0.5399,196.1,196.05,15.63975629]
[1739395182132,0.03,196.1,196.05,15.63975629]
[1739395183646,0.03,196.1,196.04,15.63975629]
[1739395184237,15.66975629,196.1,196.04,15.63975629]
[1739395184631,15.66975629,196.1,196.03,15.63975629]
[1739395184632,16.17965629,196.1,196.03,15.63975629]
[1739395184839,15.63975629,196.08,196.02,5.1014]
[1739395186147,15.63975629,196.07,196.02,5.1014]
[1739395187643,15.63975629,196.07,196.0,15.63975629]
[1739395187843,15.63975629,196.04,195.98,15.63975629]
[1739395189740,15.63975629,196.03,195.97,20.74245629]
[1739395190249,0.5101,196.04,195.97,20.74245629]
[1739395190250,0.5101,196.04,195.98,15.63975629]
[1739395190640,0.5101,196.04,195.99,15.63975629]
[1739395190835,0.03,196.1,196.03,15.63975629]
[1739395191044,0.03,196.1,196.05,15.63975629]
[1739395191247,16.17965629,196.1,196.03,15.63975629]
[1739395191431,15.63975629,196.07,196.0,15.63975629]
[1739395192555,15.63975629,196.07,196.01,5.1017]
[1739395193664,15.63975629,196.07,196.01,20.74145629]
[1739395194565,0.51,196.08,196.02,15.63975629]
[1739395194873,0.03,196.1,196.04,15.63975629]
[1739395195058,0.03,196.1,196.05,15.63975629]
[1739395195253,0.03,196.1,196.06,15.63975629]
[1739395195585,0.03,196.1,196.07,15.63975629]
[1739395197148,0.03,196.1,196.06,20.74005629]
[1739395199156,0.03,196.1,196.07,15.63975629]
[1739395200378,0.03,196.1,196.06,20.73995629]
[1739395202071,0.03,196.1,196.07,15.63975629]
[1739395202683,0.03,196.1,196.08,15.63975629]
[1739395204185,0.03,196.1,196.07,15.63975629]
[1739395204966,0.03,196.1,196.04,20.74065629]
[1739395205174,15.63975629,196.09,196.03,15.63975629]
[1739395205376,15.63975629,196.09,196.02,15.63975629]
[1739395205999,15.63975629,196.09,196.03,15.63975629]
[1739395206582,0.5099,196.08,196.03,15.63975629]
[1739395206785,15.63975629,196.07,196.0,20.74175629]
[1739395206970,15.63975629,196.06,196.0,20.74175629]
[1739395207165,0.5099,196.08,196.0,20.74175629]
[1739395207166,15.63975629,196.07,196.0,20.74175629]
[1739395207576,15.63975629,196.06,196.0,20.74175629]
[1739395207785,15.63975629,196.06,196.0,15.63975629]
[1739395208291,15.63975629,196.07,196.0,15.63975629]
[1739395208600,0.5099,196.08,196.02,15.63975629]
[1739395208601,16.14965629,196.08,196.02,15.63975629]
[1739395208972,15.63975629,196.04,195.98,15.63975629]
[1739395209167,15.63975629,196.03,195.97,15.63975629]
[1739395209974,15.63975629,196.04,195.98,15.63975629]
[1739395210177,16.14985629,196.04,195.98,19.41232098]
[1739395210497,0.5101,196.04,195.99,15.63975629]
[1739395211013,0.5101,196.04,195.98,19.41232098]
[1739395211979,0.5101,196.04,195.98,15.63975629]
[1739395212402,16.14985629,196.04,195.98,15.63975629]
[1739395212690,0.5101,196.04,195.98,15.63975629]
[1739395213668,15.63975629,196.02,195.96,20.74275629]
[1739395213980,15.63975629,196.02,195.95,20.74305629]
[1739395214969,16.14985629,196.02,195.96,15.63975629]
[1739395215170,16.14985629,196.02,195.95,15.63975629]
[1739395215399,15.63975629,196.01,195.95,15.63975629]
[1739395215700,15.63975629,196.01,195.94,0.063]
[1739395215701,15.63975629,195.99,195.94,0.063]
[1739395216067,15.63975629,196.0,195.94,0.063]
[1739395216271,21.89974629,196.01,195.94,15.70275629]
[1739395216471,15.63975629,196.0,195.94,15.70275629]
[1739395216889,15.63975629,196.0,195.94,0.063]
[1739395217292,0.5102,195.99,195.94,0.063]
[1739395217685,15.63975629,195.98,195.94,0.063]
[1739395218692,0.5102,195.98,195.94,0.063]
[1739395220593,15.63975629,195.97,195.94,0.063]
[1739395221000,15.63975629,195.96,195.94,0.063]
[1739395221987,0.5103,195.95,195.94,0.063]
[1739395223282,15.63975629,195.97,195.94,0.063]
[1739395223484,16.14995629,195.97,195.94,0.063]
[1739395224701,0.5103,195.95,195.94,0.063]
[1739395225500,17.87004629,195.95,195.94,0.063]
[1739395228403,17.99553629,195.95,195.94,0.063]
[1739395229302,31.53287482,195.95,195.94,0.063]
[1739395229603,25.91825538,195.95,195.94,0.063]
[1739395245840,25.91825538,195.95,195.89,0.063]
[1739395245841,0.25098,195.91,195.89,0.063]
[1739395246161,10.02513685,195.9,195.89,0.063]
[1739395246937,10.53553685,195.9,195.89,0.063]
[1739395248062,10.78651685,195.9,195.89,0.063]
[1739395249361,24.32385538,195.9,195.89,0.063]
[1739395259763,0.5104,195.9,195.89,0.063]
[1739395260157,0.12549,195.92,195.89,0.063]
[1739395260382,20.0,195.9,195.89,0.063]
[1739395261451,10.53553685,195.91,195.89,0.063]
[1739395262166,0.5104,195.91,195.89,0.063]
[1739395262881,0.03,195.94,195.9,10.02513685]
[1739395264076,20.0,195.93,195.89,0.063]
[1739395264282,10.02513685,195.92,195.89,0.063]
[1739395264989,20.0,195.93,195.9,10.02513685]
[1739395265354,20.0,195.92,195.89,10.08813685]
[1739395266380,0.5103,195.93,195.89,0.063]
[1739395266888,10.53543685,195.93,195.89,0.063]
[1739395267287,20.0,195.92,195.89,10.08813685]
[1739395267462,20.0,195.92,195.89,0.063]
[1739395268307,0.5104,195.92,195.89,0.063]
[1739395269592,10.66092685,195.93,195.89,0.063]
[1739395272192,10.02513685,195.9,195.89,0.063]
[1739395273291,13.78831853,195.89,195.88,0.063]
[1739395273491,13.78831853,195.89,195.87,0.063]
[1739395273673,0.12549,195.83,195.8,0.063]
[1739395273877,10.02513685,195.81,195.8,0.063]
[1739395274978,10.53573685,195.81,195.8,0.063]
[1739395275576,10.66122685,195.81,195.8,0.063]
[1739395277166,66.55382651,195.81,195.8,0.063]
[1739395277593,0.12549,195.77,195.75,0.063]
[1739395277775,10.02513685,195.76,195.75,0.063]
[1739395278188,10.15062685,195.76,195.75,0.063]
[1739395278595,10.27611685,195.76,195.75,0.063]
[1739395279297,10.78691685,195.76,195.75,0.063]
[1739395280093,10.66142685,195.76,195.75,0.063]
[1739395280669,10.78691685,195.76,195.75,0.063]
[1739395280909,24.32425538,195.76,195.75,0.063]
[1739395281274,27.05934538,195.76,195.75,0.063]
[1739395282098,28.05934538,195.76,195.75,0.063]
[1739395282605,0.25098,195.71,195.69,0.063]
[1739395282902,10.02513685,195.7,195.69,0.063]
[1739395283497,10.53603685,195.7,195.69,0.063]
[1739395286685,10.91250685,195.7,195.69,0.063]
[1739395286988,10.66152685,195.7,195.69,0.063]
[1739395287594,10.91250685,195.7,195.69,0.063]
[1739395287790,24.32435538,195.7,195.69,0.063]
[1739395290610,25.44984538,195.7,195.69,0.063]
[1739395291692,24.44984538,195.7,195.69,0.063]
[1739395291891,10.66152685,195.7,195.69,0.063]
[1739395293618,10.78701685,195.7,195.69,0.063]
[1739395294426,24.32435538,195.7,195.69,0.063]
[1739395295919,10.66152685,195.7,195.69,0.063]
[1739395301001,10.91250685,195.7,195.69,0.063]
[1739395309027,10.66152685,195.7,195.69,0.063]
[1739395315440,0.63639,195.7,195.69,0.063]
[1739395317219,0.5109,195.7,195.69,0.063]
[1739395317418,0.5109,195.73,195.69,10.08813685]
[1739395317627,20.0,195.72,195.69,10.08813685]
[1739395317831,20.0,195.71,195.69,0.063]
[1739395318434,0.5109,195.71,195.69,0.063]
[1739395318944,10.53603685,195.71,195.69,0.063]
[1739395319441,10.08813685,195.74,195.69,0.063]
[1739395319650,20.0,195.71,195.69,0.063]
[1739395323633,0.5738,195.74,195.7,10.02513685]
[1739395323942,0.5738,195.74,195.71,10.02513685]
[1739395324345,0.063,195.74,195.71,10.02513685]
[1739395325158,0.063,195.74,195.7,10.02513685]
[1739395325869,0.063,195.74,195.71,10.02513685]
[1739395326025,0.063,195.74,195.73,10.02513685]
[1739395326451,0.063,195.74,195.73,11.63983685]
[1739395326743,0.063,195.74,195.73,31.34196538]
[1739395327953,0.063,195.74,195.73,36.45096538]
[1739395329053,0.063,195.74,195.73,36.32547538]
[1739395329232,0.063,195.74,195.73,36.45096538]
[1739395329432,0.03,195.81,195.74,13.53733853]
[1739395329757,0.03,195.81,195.8,10.02513685]
[1739395329936,0.03,195.81,195.8,50.12568425]
[1739395330252,0.03,195.81,195.8,10.02513685]
[1739395331930,0.03,195.81,195.8,15.13233685]
[1739395335540,0.03,195.81,195.8,68.77022278]
[1739395335885,0.03,195.81,195.8,75.38402278]
[1739395336363,0.03,195.81,195.8,76.5816781]
[1739395336740,0.03,195.81,195.8,75.38402278]
[1739395338055,0.03,195.81,195.8,75.63500278]
[1739395338260,0.5104,195.92,195.81,13.78831853]
[1739395338462,0.5104,195.92,195.9,10.02513685]
[1739395338945,1.5992,195.94,195.9,10.02513685]
[1739395339260,0.5103,195.93,195.89,10.02513685]
[1739395340067,0.5103,195.93,195.9,10.02513685]
[1739395340235,0.5103,195.93,195.89,10.02513685]
[1739395340638,0.5103,195.93,195.88,10.02513685]
[1739395340868,0.5103,195.93,195.87,10.02513685]
[1739395341064,0.5103,195.93,195.88,10.02513685]
[1739395341259,10.02513685,195.91,195.84,10.02513685]
[1739395341459,0.12549,195.92,195.83,15.13153685]
[1739395341460,10.02513685,195.9,195.83,15.13153685]
[1739395341757,10.02513685,195.89,195.83,15.13153685]
[1739395341963,10.02513685,195.87,195.81,15.13183685]
[1739395342754,10.02513685,195.88,195.82,10.02513685]
[1739395342941,10.02513685,195.86,195.8,10.08813685]
[1739395343262,10.02513685,195.86,195.8,0.063]
[1739395343470,10.02513685,195.87,195.81,10.02513685]
[1739395343652,10.02513685,195.87,195.8,0.063]
[1739395343653,16.30692864,195.88,195.82,15.67093864]
[1739395344262,0.5105,195.88,195.82,15.67093864]
[1739395344469,0.5105,195.88,195.83,15.67093864]
[1739395346062,0.5105,195.88,195.84,15.67093864]
[1739395347072,0.03,195.93,195.87,15.67093864]
[1739395347273,0.03,195.93,195.9,15.67093864]
[1739395349558,0.03,195.93,195.89,15.67093864]
[1739395349754,0.03,195.93,195.9,15.67093864]
[1739395349953,0.03,195.93,195.92,15.79642864]
[1739395350161,0.03,195.93,195.92,15.67093864]
[1739395350646,0.03,195.93,195.89,20.0]
[1739395351250,0.03,195.93,195.91,15.67093864]
[1739395351642,0.03,195.93,195.92,15.67093864]
[1739395352855,0.03,195.93,195.92,20.77503864]
[1739395353386,0.03,195.93,195.92,5.1041]
[1739395353555,0.03,195.93,195.91,15.67093864]
[1739395354281,0.03,195.93,195.92,15.67093864]
[1739395355762,0.03,195.93,195.92,20.77503864]
[1739395356259,0.03,195.93,195.92,15.67093864]
[1739395359957,0.03,195.93,195.91,20.77513864]
[1739395360892,0.03,195.93,195.92,15.67093864]
[1739395361397,0.03,195.93,195.9,15.67093864]
[1739395361558,0.03,195.93,195.91,15.67093864]
[1739395361762,0.03,195.93,195.92,15.67093864]
[1739395362265,0.03,195.93,195.92,20.77503864]
[1739395363187,0.03,195.93,195.92,35.38397284]
[1739395363503,0.03,195.94,195.93,20.02363853]
[1739395363788,13.37024667,195.98,195.93,30.03338808]
[1739395363972,0.03,195.99,195.95,13.53733853]
[1739395364163,0.03,195.99,195.96,1.07127056]
[1739395364366,0.03,195.99,195.98,15.11224955]
[1739395365684,0.03,195.99,195.98,20.74101578]
[1739395369891,0.03,195.99,195.98,34.27835431]
[1739395381683,0.03,195.99,195.98,20.74101578]
[1739395382099,0.03,195.99,195.98,34.27835431]
[1739395382486,0.03,195.99,195.98,35.34948029]
[1739395382680,0.03,195.99,195.98,35.60046029]
[1739395382878,0.03,196.01,196.0,0.12549]
[1739395383082,0.03,196.01,196.0,32.47347463]
[1739395383690,0.03,196.01,196.0,37.57547463]
[1739395387605,0.03,196.01,196.0,15.11039852]
[1739395389708,0.03,196.01,196.0,56.2151049]
[1739395389913,0.03,196.01,196.0,69.75244343]
[1739395390403,0.03,196.01,196.0,68.68133113]
[1739395391704,0.03,196.01,196.0,28.64773705]
[1739395392410,0.03,196.01,196.0,68.68133113]
[1739395392595,0.03,196.01,196.0,69.80682113]
[1739395392792,1.5444,196.09,196.01,0.12549]
[1739395392994,1.5444,196.09,196.08,10.00839852]
[1739395393203,1.5444,196.09,196.07,10.00839852]
[1739395393510,1.5444,196.09,196.08,10.00839852]
[1739395394502,1.5444,196.09,196.07,10.00839852]
[1739395394889,1.5444,196.09,196.08,10.00839852]
[1739395396419,1.5444,196.09,196.06,10.00839852]
[1739395397016,1.5444,196.09,196.07,10.00839852]
[1739395397218,1.5444,196.09,196.08,10.00839852]
[1739395397411,1.5444,196.09,196.07,10.00839852]
[1739395398295,1.5444,196.09,196.08,10.00839852]
[1739395398494,1.5444,196.09,196.07,10.00839852]
[1739395400604,6.1651,196.1,196.08,10.00839852]
[1739395400605,0.03,196.1,196.08,10.00839852]
[1739395400822,0.03,196.1,196.09,10.00839852]
[1739395405518,0.03,196.1,196.09,15.10799852]
[1739395406104,0.03,196.1,196.09,55.1415926]
[1739395406307,0.03,196.1,196.09,68.80442113]
[1739395406620,0.03,196.13,196.1,0.12549]
[1739395406815,0.03,196.13,196.12,10.00839852]
[1739395407409,0.03,196.13,196.12,15.10729852]
[1739395407615,0.03,196.13,196.12,28.77012705]
[1739395407806,0.03,196.13,196.12,28.89561705]
[1739395411814,0.03,196.13,196.12,15.10729852]
[1739395423034,0.03,196.13,196.12,28.64463705]
[1739395423939,0.03,196.13,196.12,15.10729852]
[1739395430445,0.03,196.13,196.11,10.00839852]
[1739395430641,0.03,196.13,196.11,5.0991]
[1739395430839,0.03,196.13,196.1,0.063]
[1739395431041,10.00839852,196.12,196.1,0.063]
[1739395431243,1.5534,196.11,196.1,0.063]
[1739395432037,11.56179852,196.11,196.1,0.063]
[1739395432239,12.07169852,196.11,196.1,0.063]
[1739395432643,2.0633,196.11,196.1,0.063]
[1739395434149,1.5534,196.11,196.1,0.063]
[1739395437227,0.03,196.13,196.1,10.07139852]
[1739395437432,0.03,196.13,196.11,10.00839852]
[1739395438160,0.03,196.13,196.1,10.07139852]
[1739395438538,0.03,196.13,196.11,10.00839852]
[1739395439354,0.03,196.13,196.1,10.07139852]
[1739395439557,0.03,196.13,196.1,0.063]
[1739395440355,10.00839852,196.12,196.1,0.063]
[1739395442452,0.5398,196.13,196.1,0.063]
[1739395447855,0.03,196.13,196.1,0.063]
[1739395449974,0.03,196.13,196.1,10.07139852]
[1739395451171,10.00839852,196.12,196.1,0.063]
[1739395451364,10.00839852,196.11,196.1,0.063]
[1739395452304,12.21538852,196.11,196.1,0.063]
[1739395453373,12.34087852,196.11,196.1,0.063]
[1739395453698,18.55587852,196.11,196.1,0.063]
[1739395457777,18.68136852,196.11,196.1,0.063]
[1739395457975,72.12681113,196.11,196.1,0.063]
[1739395458180,0.12549,196.07,196.01,0.063]
[1739395458376,10.00839852,196.04,196.01,0.063]
[1739395458792,10.00839852,196.03,196.01,0.063]
[1739395459975,10.00839852,196.04,196.01,0.063]
[1739395461108,10.00839852,196.05,196.01,0.063]
[1739395461594,10.00839852,196.06,196.01,0.063]
[1739395462498,10.51839852,196.06,196.01,0.063]
[1739395466196,20.0,196.07,196.02,10.00839852]
[1739395466494,10.51839852,196.08,196.01,10.07139852]
[1739395466673,10.00839852,196.07,196.01,10.07139852]
[1739395466873,10.00839852,196.06,196.01,0.063]
[1739395467505,10.00839852,196.05,196.01,0.063]
[1739395467712,10.00839852,196.03,196.01,0.063]
[1739395468194,10.00839852,196.02,196.01,0.063]
[1739395468899,10.25937852,196.02,196.01,0.063]
[1739395469203,10.00839852,195.97,195.94,0.063]
[1739395469582,10.00839852,195.98,195.94,0.063]
[1739395470584,10.00839852,195.97,195.94,0.063]
[1739395470793,10.00839852,195.95,195.94,0.063]
[1739395471712,10.13388852,195.95,195.94,0.063]
[1739395472779,10.64418852,195.95,195.94,0.063]
[1739395473697,24.30701705,195.95,195.94,0.063]
[1739395474893,10.76967852,195.95,195.94,0.063]
[1739395475099,10.64418852,195.95,195.94,0.063]
[1739395476396,10.89516852,195.95,195.94,0.063]
[1739395481394,10.64418852,195.95,195.94,0.063]
[1739395487002,82.38694364,195.96,195.94,0.063]
[1739395487383,0.08694364,195.96,195.94,0.063]